Workbook

Sheet Data Entry
A1: Pellet 1 | G1: Pellet 2 | M1: Pellet 3 | S1: Pellet 4 | Y1: Pellet 5 | AE1: Pellet 6 | AK1: Pellet 7 | AQ1: Pellet 8 | AW1: Pellet 9 | BC1: Pellet 10
A2: Depth: | B2: 1692.58 | G2: Depth: | H2: 1710.08 | M2: Depth: | N2: 1724.50 | S2: Depth: | T2: 1738.45 | Y2: Depth: | Z2: 1752.53 | AE2: Depth: | AF2: 1765.07 | AK2: Depth: | AL2: 1779.04 | AQ2: Depth: | AR2: 1791.31 | AW2: Depth: | AX2: 1805.38 | BC2: Depth: | BD2: 1820.00
A3: Well: | B3: Little Bear N-9 | G3: Well: | H3: Little Bear N-9 | M3: Well: | N3: Little Bear N-9 | S3: Well: | T3: Little Bear N-9 | Y3: Well: | Z3: Little Bear N-9 | AE3: Well: | AF3: Little Bear N-9 | AK3: Well: | AL3: Little Bear N-9 | AQ3: Well: | AR3: Little Bear N-9 | AW3: Well: | AX3: Little Bear N-9 | BC3: Well: | BD3: Little Bear N-9
A4: Pellet # | B4: 373-12 | G4: Pellet # | H4: 374-12 | M4: Pellet # | N4: 375-12 | S4: Pellet # | T4: 376-12 | Y4: Pellet # | Z4: 377-12 | AE4: Pellet # | AF4: 378-12 | AK4: Pellet # | AL4: 379-12 | AQ4: Pellet # | AR4: 380-12 | AW4: Pellet # | AX4: 381-12 | BC4: Pellet # | BD4: 382-12
B5: Count: | C5: =COUNT(C7:C56) -> 3 | D5: =COUNT(D7:D56) -> 0 | E5: =COUNT(E7:E56) -> 0 | F5: =COUNT(F7:F56) -> 0 | H5: Count: | I5: =COUNT(I7:I56) -> 4 | J5: =COUNT(J7:J56) -> 0 | K5: =COUNT(K7:K56) -> 0 | L5: =COUNT(L7:L56) -> 0 | N5: Count: | O5: =COUNT(O7:O56) -> 11 | P5: =COUNT(P7:P56) -> 0 | Q5: =COUNT(Q7:Q56) -> 0 | R5: =COUNT(R7:R56) -> 0 | T5: Count: | U5: =COUNT(U7:U56) -> 4 | V5: =COUNT(V7:V56) -> 0 | W5: =COUNT(W7:W56) -> 0 | X5: =COUNT(X7:X56) -> 0 | Z5: Count: | AA5: =COUNT(AA7:AA56) -> 2 | AB5: =COUNT(AB7:AB56) -> 0 | AC5: =COUNT(AC7:AC56) -> 0 | AD5: =COUNT(AD7:AD56) -> 0 | AF5: Count: | AG5: =COUNT(AG7:AG56) -> 7 | AH5: =COUNT(AH7:AH56) -> 1 | AI5: =COUNT(AI7:AI56) -> 0 | AJ5: =COUNT(AJ7:AJ56) -> 0 | AL5: Count: | AM5: =COUNT(AM7:AM56) -> 2 | AN5: =COUNT(AN7:AN56) -> 4 | AO5: =COUNT(AO7:AO56) -> 0 | AP5: =COUNT(AP7:AP56) -> 0 | AR5: Count: | AS5: =COUNT(AS7:AS56) -> 2 | AT5: =COUNT(AT7:AT56) -> 0 | AU5: =COUNT(AU7:AU56) -> 0 | AV5: =COUNT(AV7:AV56) -> 0 | AX5: Count: | AY5: =COUNT(AY7:AY56) -> 10 | AZ5: =COUNT(AZ7:AZ56) -> 2 | BA5: =COUNT(BA7:BA56) -> 0 | BB5: =COUNT(BB7:BB56) -> 0 | BD5: Count: | BE5: =COUNT(BE7:BE56) -> 6 | BF5: =COUNT(BF7:BF56) -> 3 | BG5: =COUNT(BG7:BG56) -> 0 | BH5: =COUNT(BH7:BH56) -> 0
B6: OM Type: | C6: Kgn | H6: OM Type: | I6: Kgn | N6: OM Type: | O6: Grnl Kgn | T6: OM Type: | U6: Bit | Z6: OM Type: | AA6: Bit | AF6: OM Type: | AG6: Grnl Kgn | AH6: Gr | AL6: OM Type: | AM6: Grnl Kgn | AN6: Kgn | AR6: OM Type: | AS6: Grnl Kgn | AX6: OM Type: | AY6: Kgn | AZ6: Gr | BD6: OM Type: | BE6: Kgn | BF6: Gr
C7: 1.067 | I7: 1.282 | O7: 0.8485 | U7: 1.089 | AA7: 0.8175 | AG7: 0.7896 | AH7: 1.068 | AM7: 0.6156 | AN7: 1.168 | AS7: 0.3927 | AY7: 0.9646 | AZ7: 1.077 | BE7: 1.271 | BF7: 1.055
C8: 1.132 | I8: 1.388 | O8: 0.9688 | U8: 1.187 | AA8: 0.763 | AG8: 0.7594 | AM8: 0.6443 | AN8: 1.203 | AS8: 0.3936 | AY8: 1.12 | AZ8: 1.039 | BE8: 1.148 | BF8: 1.295
C9: 1.078 | I9: 1.12 | O9: 0.7352 | U9: 0.8967 | AG9: 0.8449 | AN9: 1.378 | AY9: 1.192 | BE9: 1.206 | BF9: 1.044
I10: 1.104 | O10: 0.7361 | U10: 0.9144 | AG10: 0.7753 | AN10: 1.412 | AY10: 1.122 | BE10: 1.185
O11: 0.6762 | AG11: 0.8123 | AY11: 1.239 | BE11: 1.352
O12: 0.7712 | AG12: 0.7506 | AY12: 1.141 | BE12: 1.079
O13: 0.8696 | AG13: 0.6825 | AY13: 0.9189
O14: 0.7373 | AY14: 1.052
O15: 0.7171 | AY15: 0.9557
O16: 0.7047 | AY16: 0.9334
O17: 0.6594
A58: Statistics Individual: | B58: Mean: | C58: =AVERAGE(C7:C56) -> 1.09 | D58: =AVERAGE(D7:D56) ->  | E58: =AVERAGE(E7:E56) ->  | F58: =AVERAGE(F7:F56) ->  | G58: Statistics Individual: | H58: Mean: | I58: =AVERAGE(I7:I56) -> 1.22 | J58: =AVERAGE(J7:J56) ->  | K58: =AVERAGE(K7:K56) ->  | L58: =AVERAGE(L7:L56) ->  | M58: Statistics Individual: | N58: Mean: | O58: =AVERAGE(O7:O56) -> 0.77 | P58: =AVERAGE(P7:P56) ->  | Q58: =AVERAGE(Q7:Q56) ->  | R58: =AVERAGE(R7:R56) ->  | S58: Statistics Individual: | T58: Mean: | U58: =AVERAGE(U7:U56) -> 1.02 | V58: =AVERAGE(V7:V56) ->  | W58: =AVERAGE(W7:W56) ->  | X58: =AVERAGE(X7:X56) ->  | Y58: Statistics Individual: | Z58: Mean: | AA58: =AVERAGE(AA7:AA56) -> 0.79 | AB58: =AVERAGE(AB7:AB56) ->  | AC58: =AVERAGE(AC7:AC56) ->  | AD58: =AVERAGE(AD7:AD56) ->  | AE58: Statistics Individual: | AF58: Mean: | AG58: =AVERAGE(AG7:AG56) -> 0.77 | AH58: =AVERAGE(AH7:AH56) -> 1.07 | AI58: =AVERAGE(AI7:AI56) ->  | AJ58: =AVERAGE(AJ7:AJ56) ->  | AK58: Statistics Individual: | AL58: Mean: | AM58: =AVERAGE(AM7:AM56) -> 0.63 | AN58: =AVERAGE(AN7:AN56) -> 1.29 | AO58: =AVERAGE(AO7:AO56) ->  | AP58: =AVERAGE(AP7:AP56) ->  | AQ58: Statistics Individual: | AR58: Mean: | AS58: =AVERAGE(AS7:AS56) -> 0.39 | AT58: =AVERAGE(AT7:AT56) ->  | AU58: =AVERAGE(AU7:AU56) ->  | AV58: =AVERAGE(AV7:AV56) ->  | AW58: Statistics Individual: | AX58: Mean: | AY58: =AVERAGE(AY7:AY56) -> 1.06 | AZ58: =AVERAGE(AZ7:AZ56) -> 1.06 | BA58: =AVERAGE(BA7:BA56) ->  | BB58: =AVERAGE(BB7:BB56) ->  | BC58: Statistics Individual: | BD58: Mean: | BE58: =AVERAGE(BE7:BE56) -> 1.21 | BF58: =AVERAGE(BF7:BF56) -> 1.13 | BG58: =AVERAGE(BG7:BG56) ->  | BH58: =AVERAGE(BH7:BH56) -> 
B59: Max: | C59: =MAX(C7:C56) -> 1.13 | D59: =MAX(D7:D56) -> 0.00 | E59: =MAX(E7:E56) -> 0.00 | F59: =MAX(F7:F56) -> 0.00 | H59: Max: | I59: =MAX(I7:I56) -> 1.39 | J59: =MAX(J7:J56) -> 0.00 | K59: =MAX(K7:K56) -> 0.00 | L59: =MAX(L7:L56) -> 0.00 | N59: Max: | O59: =MAX(O7:O56) -> 0.97 | P59: =MAX(P7:P56) -> 0.00 | Q59: =MAX(Q7:Q56) -> 0.00 | R59: =MAX(R7:R56) -> 0.00 | T59: Max: | U59: =MAX(U7:U56) -> 1.19 | V59: =MAX(V7:V56) -> 0.00 | W59: =MAX(W7:W56) -> 0.00 | X59: =MAX(X7:X56) -> 0.00 | Z59: Max: | AA59: =MAX(AA7:AA56) -> 0.82 | AB59: =MAX(AB7:AB56) -> 0.00 | AC59: =MAX(AC7:AC56) -> 0.00 | AD59: =MAX(AD7:AD56) -> 0.00 | AF59: Max: | AG59: =MAX(AG7:AG56) -> 0.84 | AH59: =MAX(AH7:AH56) -> 1.07 | AI59: =MAX(AI7:AI56) -> 0.00 | AJ59: =MAX(AJ7:AJ56) -> 0.00 | AL59: Max: | AM59: =MAX(AM7:AM56) -> 0.64 | AN59: =MAX(AN7:AN56) -> 1.41 | AO59: =MAX(AO7:AO56) -> 0.00 | AP59: =MAX(AP7:AP56) -> 0.00 | AR59: Max: | AS59: =MAX(AS7:AS56) -> 0.39 | AT59: =MAX(AT7:AT56) -> 0.00 | AU59: =MAX(AU7:AU56) -> 0.00 | AV59: =MAX(AV7:AV56) -> 0.00 | AX59: Max: | AY59: =MAX(AY7:AY56) -> 1.24 | AZ59: =MAX(AZ7:AZ56) -> 1.08 | BA59: =MAX(BA7:BA56) -> 0.00 | BB59: =MAX(BB7:BB56) -> 0.00 | BD59: Max: | BE59: =MAX(BE7:BE56) -> 1.35 | BF59: =MAX(BF7:BF56) -> 1.30 | BG59: =MAX(BG7:BG56) -> 0.00 | BH59: =MAX(BH7:BH56) -> 0.00
B60: Min: | C60: =MIN(C7:C56) -> 1.07 | D60: =MIN(D7:D56) -> 0.00 | E60: =MIN(E7:E56) -> 0.00 | F60: =MIN(F7:F56) -> 0.00 | H60: Min: | I60: =MIN(I7:I56) -> 1.10 | J60: =MIN(J7:J56) -> 0.00 | K60: =MIN(K7:K56) -> 0.00 | L60: =MIN(L7:L56) -> 0.00 | N60: Min: | O60: =MIN(O7:O56) -> 0.66 | P60: =MIN(P7:P56) -> 0.00 | Q60: =MIN(Q7:Q56) -> 0.00 | R60: =MIN(R7:R56) -> 0.00 | T60: Min: | U60: =MIN(U7:U56) -> 0.90 | V60: =MIN(V7:V56) -> 0.00 | W60: =MIN(W7:W56) -> 0.00 | X60: =MIN(X7:X56) -> 0.00 | Z60: Min: | AA60: =MIN(AA7:AA56) -> 0.76 | AB60: =MIN(AB7:AB56) -> 0.00 | AC60: =MIN(AC7:AC56) -> 0.00 | AD60: =MIN(AD7:AD56) -> 0.00 | AF60: Min: | AG60: =MIN(AG7:AG56) -> 0.68 | AH60: =MIN(AH7:AH56) -> 1.07 | AI60: =MIN(AI7:AI56) -> 0.00 | AJ60: =MIN(AJ7:AJ56) -> 0.00 | AL60: Min: | AM60: =MIN(AM7:AM56) -> 0.62 | AN60: =MIN(AN7:AN56) -> 1.17 | AO60: =MIN(AO7:AO56) -> 0.00 | AP60: =MIN(AP7:AP56) -> 0.00 | AR60: Min: | AS60: =MIN(AS7:AS56) -> 0.39 | AT60: =MIN(AT7:AT56) -> 0.00 | AU60: =MIN(AU7:AU56) -> 0.00 | AV60: =MIN(AV7:AV56) -> 0.00 | AX60: Min: | AY60: =MIN(AY7:AY56) -> 0.92 | AZ60: =MIN(AZ7:AZ56) -> 1.04 | BA60: =MIN(BA7:BA56) -> 0.00 | BB60: =MIN(BB7:BB56) -> 0.00 | BD60: Min: | BE60: =MIN(BE7:BE56) -> 1.08 | BF60: =MIN(BF7:BF56) -> 1.04 | BG60: =MIN(BG7:BG56) -> 0.00 | BH60: =MIN(BH7:BH56) -> 0.00
B61: Stdev: | C61: =STDEV(C7:C56) -> 0.03 | D61: =STDEV(D7:D56) ->  | E61: =STDEV(E7:E56) ->  | F61: =STDEV(F7:F56) ->  | H61: Stdev: | I61: =STDEV(I7:I56) -> 0.14 | J61: =STDEV(J7:J56) ->  | K61: =STDEV(K7:K56) ->  | L61: =STDEV(L7:L56) ->  | N61: Stdev: | O61: =STDEV(O7:O56) -> 0.09 | P61: =STDEV(P7:P56) ->  | Q61: =STDEV(Q7:Q56) ->  | R61: =STDEV(R7:R56) ->  | T61: Stdev: | U61: =STDEV(U7:U56) -> 0.14 | V61: =STDEV(V7:V56) ->  | W61: =STDEV(W7:W56) ->  | X61: =STDEV(X7:X56) ->  | Z61: Stdev: | AA61: =STDEV(AA7:AA56) -> 0.04 | AB61: =STDEV(AB7:AB56) ->  | AC61: =STDEV(AC7:AC56) ->  | AD61: =STDEV(AD7:AD56) ->  | AF61: Stdev: | AG61: =STDEV(AG7:AG56) -> 0.05 | AH61: =STDEV(AH7:AH56) ->  | AI61: =STDEV(AI7:AI56) ->  | AJ61: =STDEV(AJ7:AJ56) ->  | AL61: Stdev: | AM61: =STDEV(AM7:AM56) -> 0.02 | AN61: =STDEV(AN7:AN56) -> 0.12 | AO61: =STDEV(AO7:AO56) ->  | AP61: =STDEV(AP7:AP56) ->  | AR61: Stdev: | AS61: =STDEV(AS7:AS56) -> 0.00 | AT61: =STDEV(AT7:AT56) ->  | AU61: =STDEV(AU7:AU56) ->  | AV61: =STDEV(AV7:AV56) ->  | AX61: Stdev: | AY61: =STDEV(AY7:AY56) -> 0.12 | AZ61: =STDEV(AZ7:AZ56) -> 0.03 | BA61: =STDEV(BA7:BA56) ->  | BB61: =STDEV(BB7:BB56) ->  | BD61: Stdev: | BE61: =STDEV(BE7:BE56) -> 0.10 | BF61: =STDEV(BF7:BF56) -> 0.14 | BG61: =STDEV(BG7:BG56) ->  | BH61: =STDEV(BH7:BH56) -> 
C63: VRo=1.09% | I63: VRo=1.22% | U63: VRo-eq=1.03% | AH63: VRo-eq=1.15% | AN63: VRo=1.29% | AZ63: VRo-eq=1.13% | BE63: VRo=1.21%
A79: Sorted Combined Measurements
A81: Depth: | B81: =B2 -> 1692.58 | C81: =H2 -> 1710.08 | D81: =N2 -> 1724.5 | E81: =T2 -> 1738.45 | F81: =Z2 -> 1752.53 | G81: =AF2 -> 1765.07 | H81: =AL2 -> 1779.04 | I81: =AR2 -> 1791.31 | J81: =AX2 -> 1805.38 | K81: =BD2 -> 1820
A82: 1 | B82: 1.067 | C82: 1.282 | D82: 0.6762 | E82: 0.8967 | F82: 0.763 | G82: 1.068 | H82: 1.168 | I82: 0.3927 | J82: 0.9189 | K82: 1.079
A83: 2 | B83: 1.078 | C83: 1.104 | D83: 0.7352 | E83: 0.9144 | F83: 0.8175 | H83: 1.203 | I83: 0.3936 | J83: 0.9334 | K83: 1.148
A84: 3 | B84: 1.132 | C84: 1.12 | D84: 0.7361 | E84: 1.089 | H84: 1.378 | J84: 0.9557 | K84: 1.185
A85: 4 | C85: 1.388 | D85: 0.7712 | E85: 1.187 | H85: 1.412 | J85: 0.9646 | K85: 1.206
A86: 5 | D86: 0.8485 | J86: 1.052 | K86: 1.271
A87: 6 | D87: 0.8696 | J87: 1.12 | K87: 1.352
A88: 7 | D88: 0.9688 | J88: 1.122
A89: 8 | J89: 1.141
A90: 9 | J90: 1.192
A91: 10 | J91: 1.239
A92: 11
A93: 12
A94: 13
A95: 14
A96: 15
A97: 16
A98: 17
A99: 18
A100: 19
A101: 20
A102: 21
A103: 22
A104: 23
A105: 24
A106: 25
A107: 26
A108: 27
A109: 28
A110: 29
A111: 30
A112: 31
A113: 32
A114: 33
A115: 34
A116: 35
A117: 36
A118: 37
A119: 38
A120: 39
A121: 40
A122: 41
A123: 42
A124: 43
A125: 44
A126: 45
A127: 46
A128: 47
A129: 48
A130: 49
A131: 50

Sheet Database
B1: Company: | C1: Husky Energy
B2: Analyst: | C2: Thomas Gentzis
B3: Vitrinite Reflectance Measurements, Histogram and Images
H6: 1 | I6: 2 | J6: 3 | K6: 4 | L6: 5 | M6: 6 | N6: 7 | O6: 8 | P6: 9 | Q6: 10 | R6: 11 | S6: 12 | T6: 13 | U6: 14 | V6: 15 | W6: 16 | X6: 17 | Y6: 18 | Z6: 19 | AA6: 20 | AB6: 21 | AC6: 22 | AD6: 23 | AE6: 24 | AF6: 25 | AG6: 26 | AH6: 27 | AI6: 28 | AJ6: 29 | AK6: 30 | AL6: 31 | AM6: 32 | AN6: 33 | AO6: 34 | AP6: 35 | AQ6: 36 | AR6: 37 | AS6: 38 | AT6: 39 | AU6: 40 | AV6: 41 | AW6: 42 | AX6: 43 | AY6: 44 | AZ6: 45 | BA6: 46 | BB6: 47 | BC6: 48 | BD6: 49 | BE6: 50
A7: Plate # | B7: Location | C7: Formation | D7: Depth (m) | E7: Well | F7: Count | H7: VRo Measurements
A8: Plate 1 A-D | B8: Canada | C8: Canol | D8: 1692.58 | E8: Little Bear N-9 | F8: =COUNT(H8:HC8) -> 50 | G8: =AVERAGE(H8:J8) -> 1.092333333 | H8: =TRANSPOSE('Data Entry'!B82:B131) -> 1.067 | I8: 1.078 | J8: 1.132 | K8: 0 | L8: 0 | M8: 0 | N8: 0 | O8: 0 | P8: 0 | Q8: 0 | R8: 0 | S8: 0 | T8: 0 | U8: 0 | V8: 0 | W8: 0 | X8: 0 | Y8: 0 | Z8: 0 | AA8: 0 | AB8: 0 | AC8: 0 | AD8: 0 | AE8: 0 | AF8: 0 | AG8: 0 | AH8: 0 | AI8: 0 | AJ8: 0 | AK8: 0 | AL8: 0 | AM8: 0 | AN8: 0 | AO8: 0 | AP8: 0 | AQ8: 0 | AR8: 0 | AS8: 0 | AT8: 0 | AU8: 0 | AV8: 0 | AW8: 0 | AX8: 0 | AY8: 0 | AZ8: 0 | BA8: 0 | BB8: 0 | BC8: 0 | BD8: 0 | BE8: 0
A9: Plate 2 A-D | B9: Canada | C9: Canol | D9: 1710.08 | E9: Little Bear N-9 | F9: =COUNT(H9:BI9) -> 50 | G9: =AVERAGE(H9:K9) -> 1.2235 | H9: =TRANSPOSE('Data Entry'!C82:C131) -> 1.282 | I9: 1.104 | J9: 1.12 | K9: 1.388 | L9: 0 | M9: 0 | N9: 0 | O9: 0 | P9: 0 | Q9: 0 | R9: 0 | S9: 0 | T9: 0 | U9: 0 | V9: 0 | W9: 0 | X9: 0 | Y9: 0 | Z9: 0 | AA9: 0 | AB9: 0 | AC9: 0 | AD9: 0 | AE9: 0 | AF9: 0 | AG9: 0 | AH9: 0 | AI9: 0 | AJ9: 0 | AK9: 0 | AL9: 0 | AM9: 0 | AN9: 0 | AO9: 0 | AP9: 0 | AQ9: 0 | AR9: 0 | AS9: 0 | AT9: 0 | AU9: 0 | AV9: 0 | AW9: 0 | AX9: 0 | AY9: 0 | AZ9: 0 | BA9: 0 | BB9: 0 | BC9: 0 | BD9: 0 | BE9: 0
A10: Plate 3 A-D | B10: Canada | C10: Canol | D10: 1724.50 | E10: Little Bear N-9 | F10: =COUNT(H10:BI10) -> 50 | G10: =AVERAGE(H10:N10) -> 0.8008 | H10: =TRANSPOSE('Data Entry'!D82:D131) -> 0.6762 | I10: 0.7352 | J10: 0.7361 | K10: 0.7712 | L10: 0.8485 | M10: 0.8696 | N10: 0.9688 | O10: 0 | P10: 0 | Q10: 0 | R10: 0 | S10: 0 | T10: 0 | U10: 0 | V10: 0 | W10: 0 | X10: 0 | Y10: 0 | Z10: 0 | AA10: 0 | AB10: 0 | AC10: 0 | AD10: 0 | AE10: 0 | AF10: 0 | AG10: 0 | AH10: 0 | AI10: 0 | AJ10: 0 | AK10: 0 | AL10: 0 | AM10: 0 | AN10: 0 | AO10: 0 | AP10: 0 | AQ10: 0 | AR10: 0 | AS10: 0 | AT10: 0 | AU10: 0 | AV10: 0 | AW10: 0 | AX10: 0 | AY10: 0 | AZ10: 0 | BA10: 0 | BB10: 0 | BC10: 0 | BD10: 0 | BE10: 0
A11: Plate 4 A-D | B11: Canada | C11: Canol | D11: 1738.45 | E11: Little Bear N-9 | F11: 50 | G11: =AVERAGE(H11:K11) -> 1.021775 | H11: =TRANSPOSE('Data Entry'!E82:E131) -> 0.8967 | I11: 0.9144 | J11: 1.089 | K11: 1.187 | L11: 0 | M11: 0 | N11: 0 | O11: 0 | P11: 0 | Q11: 0 | R11: 0 | S11: 0 | T11: 0 | U11: 0 | V11: 0 | W11: 0 | X11: 0 | Y11: 0 | Z11: 0 | AA11: 0 | AB11: 0 | AC11: 0 | AD11: 0 | AE11: 0 | AF11: 0 | AG11: 0 | AH11: 0 | AI11: 0 | AJ11: 0 | AK11: 0 | AL11: 0 | AM11: 0 | AN11: 0 | AO11: 0 | AP11: 0 | AQ11: 0 | AR11: 0 | AS11: 0 | AT11: 0 | AU11: 0 | AV11: 0 | AW11: 0 | AX11: 0 | AY11: 0 | AZ11: 0 | BA11: 0 | BB11: 0 | BC11: 0 | BD11: 0 | BE11: 0
A12: Plate 5 A-D | B12: Canada | C12: Canol | D12: 1752.53 | E12: Little Bear N-9 | F12: 50 | G12: =AVERAGE(H12:I12) -> 0.79025 | H12: =TRANSPOSE('Data Entry'!F82:F131) -> 0.763 | I12: 0.8175 | J12: 0 | K12: 0 | L12: 0 | M12: 0 | N12: 0 | O12: 0 | P12: 0 | Q12: 0 | R12: 0 | S12: 0 | T12: 0 | U12: 0 | V12: 0 | W12: 0 | X12: 0 | Y12: 0 | Z12: 0 | AA12: 0 | AB12: 0 | AC12: 0 | AD12: 0 | AE12: 0 | AF12: 0 | AG12: 0 | AH12: 0 | AI12: 0 | AJ12: 0 | AK12: 0 | AL12: 0 | AM12: 0 | AN12: 0 | AO12: 0 | AP12: 0 | AQ12: 0 | AR12: 0 | AS12: 0 | AT12: 0 | AU12: 0 | AV12: 0 | AW12: 0 | AX12: 0 | AY12: 0 | AZ12: 0 | BA12: 0 | BB12: 0 | BC12: 0 | BD12: 0 | BE12: 0
A13: Plate 6 A-D | B13: Canada | C13: Canol | D13: 1765.07 | E13: Little Bear N-9 | F13: 50 | G13: 1.068 | H13: =TRANSPOSE('Data Entry'!G82:G131) -> 1.068 | I13: 0 | J13: 0 | K13: 0 | L13: 0 | M13: 0 | N13: 0 | O13: 0 | P13: 0 | Q13: 0 | R13: 0 | S13: 0 | T13: 0 | U13: 0 | V13: 0 | W13: 0 | X13: 0 | Y13: 0 | Z13: 0 | AA13: 0 | AB13: 0 | AC13: 0 | AD13: 0 | AE13: 0 | AF13: 0 | AG13: 0 | AH13: 0 | AI13: 0 | AJ13: 0 | AK13: 0 | AL13: 0 | AM13: 0 | AN13: 0 | AO13: 0 | AP13: 0 | AQ13: 0 | AR13: 0 | AS13: 0 | AT13: 0 | AU13: 0 | AV13: 0 | AW13: 0 | AX13: 0 | AY13: 0 | AZ13: 0 | BA13: 0 | BB13: 0 | BC13: 0 | BD13: 0 | BE13: 0
A14: Plate 7 A-D | B14: Canada | C14: Canol | D14: 1779.04 | E14: Little Bear N-9 | F14: 50 | G14: =AVERAGE(H14:K14) -> 1.29025 | H14: =TRANSPOSE('Data Entry'!H82:H131) -> 1.168 | I14: 1.203 | J14: 1.378 | K14: 1.412 | L14: 0 | M14: 0 | N14: 0 | O14: 0 | P14: 0 | Q14: 0 | R14: 0 | S14: 0 | T14: 0 | U14: 0 | V14: 0 | W14: 0 | X14: 0 | Y14: 0 | Z14: 0 | AA14: 0 | AB14: 0 | AC14: 0 | AD14: 0 | AE14: 0 | AF14: 0 | AG14: 0 | AH14: 0 | AI14: 0 | AJ14: 0 | AK14: 0 | AL14: 0 | AM14: 0 | AN14: 0 | AO14: 0 | AP14: 0 | AQ14: 0 | AR14: 0 | AS14: 0 | AT14: 0 | AU14: 0 | AV14: 0 | AW14: 0 | AX14: 0 | AY14: 0 | AZ14: 0 | BA14: 0 | BB14: 0 | BC14: 0 | BD14: 0 | BE14: 0
A15: Plate 8 A-D | B15: Canada | C15: Canol | D15: 1791.31 | E15: Little Bear N-9 | F15: 50 | G15: =AVERAGE(H15:I15) -> 0.39315 | H15: =TRANSPOSE('Data Entry'!I82:I131) -> 0.3927 | I15: 0.3936 | J15: 0 | K15: 0 | L15: 0 | M15: 0 | N15: 0 | O15: 0 | P15: 0 | Q15: 0 | R15: 0 | S15: 0 | T15: 0 | U15: 0 | V15: 0 | W15: 0 | X15: 0 | Y15: 0 | Z15: 0 | AA15: 0 | AB15: 0 | AC15: 0 | AD15: 0 | AE15: 0 | AF15: 0 | AG15: 0 | AH15: 0 | AI15: 0 | AJ15: 0 | AK15: 0 | AL15: 0 | AM15: 0 | AN15: 0 | AO15: 0 | AP15: 0 | AQ15: 0 | AR15: 0 | AS15: 0 | AT15: 0 | AU15: 0 | AV15: 0 | AW15: 0 | AX15: 0 | AY15: 0 | AZ15: 0 | BA15: 0 | BB15: 0 | BC15: 0 | BD15: 0 | BE15: 0
A16: Plate 9 A-D | B16: Canada | C16: Canol | D16: 1805.38 | E16: Little Bear N-9 | F16: 50 | G16: =AVERAGE(H16:Q16) -> 1.06386 | H16: =TRANSPOSE('Data Entry'!J82:J131) -> 0.9189 | I16: 0.9334 | J16: 0.9557 | K16: 0.9646 | L16: 1.052 | M16: 1.12 | N16: 1.122 | O16: 1.141 | P16: 1.192 | Q16: 1.239 | R16: 0 | S16: 0 | T16: 0 | U16: 0 | V16: 0 | W16: 0 | X16: 0 | Y16: 0 | Z16: 0 | AA16: 0 | AB16: 0 | AC16: 0 | AD16: 0 | AE16: 0 | AF16: 0 | AG16: 0 | AH16: 0 | AI16: 0 | AJ16: 0 | AK16: 0 | AL16: 0 | AM16: 0 | AN16: 0 | AO16: 0 | AP16: 0 | AQ16: 0 | AR16: 0 | AS16: 0 | AT16: 0 | AU16: 0 | AV16: 0 | AW16: 0 | AX16: 0 | AY16: 0 | AZ16: 0 | BA16: 0 | BB16: 0 | BC16: 0 | BD16: 0 | BE16: 0
A17: Plate 10 A-D | B17: Canada | C17: Canol | D17: 1820.00 | E17: Little Bear N-9 | F17: 50 | G17: =AVERAGE(H17:M17) -> 1.206833333 | H17: =TRANSPOSE('Data Entry'!K82:K131) -> 1.079 | I17: 1.148 | J17: 1.185 | K17: 1.206 | L17: 1.271 | M17: 1.352 | N17: 0 | O17: 0 | P17: 0 | Q17: 0 | R17: 0 | S17: 0 | T17: 0 | U17: 0 | V17: 0 | W17: 0 | X17: 0 | Y17: 0 | Z17: 0 | AA17: 0 | AB17: 0 | AC17: 0 | AD17: 0 | AE17: 0 | AF17: 0 | AG17: 0 | AH17: 0 | AI17: 0 | AJ17: 0 | AK17: 0 | AL17: 0 | AM17: 0 | AN17: 0 | AO17: 0 | AP17: 0 | AQ17: 0 | AR17: 0 | AS17: 0 | AT17: 0 | AU17: 0 | AV17: 0 | AW17: 0 | AX17: 0 | AY17: 0 | AZ17: 0 | BA17: 0 | BB17: 0 | BC17: 0 | BD17: 0 | BE17: 0

Sheet Frequency
A1: Pellet 1 | F1: Pellet 2 | K1: Pellet 3 | P1: Pellet 4 | U1: Pellet 5 | Z1: Pellet 6 | AE1: Pellet 7 | AJ1: Pellet 8 | AO1: Pellet 9 | AT1: Pellet 10
A2: Depth: | B2: ='Data Entry'!B2 -> 1692.58 | F2: Depth: | G2: ='Data Entry'!H2 -> 1710.08 | K2: Depth: | L2: ='Data Entry'!N2 -> 1724.5 | P2: Depth: | Q2: ='Data Entry'!T2 -> 1738.45 | U2: Depth: | V2: ='Data Entry'!Z2 -> 1752.53 | Z2: Depth: | AA2: ='Data Entry'!AF2 -> 1765.07 | AE2: Depth: | AF2: ='Data Entry'!AL2 -> 1779.04 | AJ2: Depth: | AK2: ='Data Entry'!AR2 -> 1791.31 | AO2: Depth: | AP2: ='Data Entry'!AX2 -> 1805.38 | AT2: Depth: | AU2: ='Data Entry'!BD2 -> 1820
A3: Individual OM Frequencies | B3: ='Data Entry'!C6 -> Kgn | C3: ='Data Entry'!D6 -> 0 | D3: ='Data Entry'!E6 -> 0 | E3: ='Data Entry'!F6 -> 0 | F3: Individual OM Frequencies | G3: ='Data Entry'!I6 -> Kgn | H3: ='Data Entry'!J6 -> 0 | I3: ='Data Entry'!K6 -> 0 | J3: ='Data Entry'!L6 -> 0 | K3: Individual OM Frequencies | L3: ='Data Entry'!O6 -> Grnl Kgn | M3: ='Data Entry'!P6 -> 0 | N3: ='Data Entry'!Q6 -> 0 | O3: ='Data Entry'!R6 -> 0 | P3: Individual OM Frequencies | Q3: ='Data Entry'!U6 -> Bit | R3: ='Data Entry'!V6 -> 0 | S3: ='Data Entry'!W6 -> 0 | T3: ='Data Entry'!X6 -> 0 | U3: Individual OM Frequencies | V3: ='Data Entry'!AA6 -> Bit | W3: ='Data Entry'!AB6 -> 0 | X3: ='Data Entry'!AC6 -> 0 | Y3: ='Data Entry'!AD6 -> 0 | Z3: Individual OM Frequencies | AA3: ='Data Entry'!AG6 -> Grnl Kgn | AB3: ='Data Entry'!AH6 -> Gr | AC3: ='Data Entry'!AI6 -> 0 | AD3: ='Data Entry'!AJ6 -> 0 | AE3: Individual OM Frequencies | AF3: ='Data Entry'!AM6 -> Grnl Kgn | AG3: ='Data Entry'!AN6 -> Kgn | AH3: ='Data Entry'!AO6 -> 0 | AI3: ='Data Entry'!AP6 -> 0 | AJ3: Individual OM Frequencies | AK3: ='Data Entry'!AS6 -> Grnl Kgn | AL3: ='Data Entry'!AT6 -> 0 | AM3: ='Data Entry'!AU6 -> 0 | AN3: ='Data Entry'!AV6 -> 0 | AO3: Individual OM Frequencies | AP3: ='Data Entry'!AY6 -> Kgn | AQ3: ='Data Entry'!AZ6 -> Gr | AR3: ='Data Entry'!BA6 -> 0 | AS3: ='Data Entry'!BB6 -> 0 | AT3: Individual OM Frequencies | AU3: ='Data Entry'!BE6 -> Kgn | AV3: ='Data Entry'!BF6 -> Gr | AW3: ='Data Entry'!BG6 -> 0 | AX3: ='Data Entry'!BH6 -> 0
A5: Bins: | F5: Bins: | K5: Bins: | P5: Bins: | U5: Bins: | Z5: Bins: | AE5: Bins: | AJ5: Bins: | AO5: Bins: | AT5: Bins:
A6: 0.9 | B6: =FREQUENCY('Data Entry'!C7:C19,A6:A10) -> 0 | F6: 0.8 | G6: =FREQUENCY('Data Entry'!I7:I23,F6:F10) -> 0 | H6: =FREQUENCY('Data Entry'!J7:J20,F6:F10) -> 0 | I6: =FREQUENCY('Data Entry'!K7:K20,F6:F10) -> 0 | K6: 0.4 | L6: =FREQUENCY('Data Entry'!O7:O36,K6:K11) -> 0 | M6: =FREQUENCY('Data Entry'!P7:P34,K6:K11) -> 0 | P6: 0.7 | Q6: =FREQUENCY('Data Entry'!U7:U28,P6:P11) -> 0 | R6: =FREQUENCY('Data Entry'!V7:V22,P6:P11) -> 0 | U6: 0.6 | V6: =FREQUENCY('Data Entry'!AA7:AA22,U6:U10) -> 0 | Z6: 0.5 | AA6: =FREQUENCY('Data Entry'!AG7:AG30,Z6:Z13) -> 0 | AB6: =FREQUENCY('Data Entry'!AH7:AH26,Z6:Z13) -> 0 | AE6: 0.4 | AF6: =FREQUENCY('Data Entry'!AM7:AM28,AE6:AE13) -> 0 | AG6: =FREQUENCY('Data Entry'!AN7:AN31,AE6:AE13) -> 0 | AJ6: 0.2 | AK6: =FREQUENCY('Data Entry'!AS7:AS28,AJ6:AJ9) -> 0 | AO6: 0.6 | AP6: =FREQUENCY('Data Entry'!AY7:AY36,AO6:AO11) -> 0 | AQ6: =FREQUENCY('Data Entry'!AZ7:AZ25,AO6:AO11) -> 0 | AT6: 0.9 | AU6: =FREQUENCY('Data Entry'!BE7:BE41,AT6:AT13) -> 0 | AV6: =FREQUENCY('Data Entry'!BF7:BF32,AT6:AT13) -> 0
A7: 1 | B7: 0 | F7: 1 | G7: 0 | H7: 0 | I7: 0 | K7: 0.6 | L7: 0 | M7: 0 | P7: 0.8 | Q7: 0 | R7: 0 | U7: 0.7 | V7: 0 | Z7: 0.6 | AA7: 0 | AB7: 0 | AE7: 0.6 | AF7: 0 | AG7: 0 | AJ7: 0.3 | AK7: 0 | AO7: 0.8 | AP7: 0 | AQ7: 0 | AT7: 1 | AU7: 0 | AV7: 0
A8: 1.1 | B8: 2 | F8: 1.2 | G8: 2 | H8: 0 | I8: 0 | K8: 0.8 | L8: 8 | M8: 0 | P8: 0.9 | Q8: 1 | R8: 0 | U8: 0.8 | V8: 1 | Z8: 0.7 | AA8: 1 | AB8: 0 | AE8: 0.8 | AF8: 2 | AG8: 0 | AJ8: 0.4 | AK8: 2 | AO8: 1 | AP8: 4 | AQ8: 0 | AT8: 1.1 | AU8: 1 | AV8: 2
A9: 1.2 | B9: 1 | F9: 1.4 | G9: 2 | H9: 0 | I9: 0 | K9: 1 | L9: 3 | M9: 0 | P9: 1 | Q9: 1 | R9: 0 | U9: 0.9 | V9: 1 | Z9: 0.8 | AA9: 4 | AB9: 0 | AE9: 1 | AF9: 0 | AG9: 0 | AJ9: 0.5 | AK9: 0 | AO9: 1.2 | AP9: 5 | AQ9: 2 | AT9: 1.2 | AU9: 2 | AV9: 0
A10: 1.3 | B10: 0 | F10: 1.6 | G10: 0 | H10: 0 | I10: 0 | K10: 1.2 | L10: 0 | M10: 0 | P10: 1.1 | Q10: 1 | R10: 0 | U10: 1 | V10: 0 | Z10: 0.9 | AA10: 2 | AB10: 0 | AE10: 1.2 | AF10: 0 | AG10: 1 | AO10: 1.4 | AP10: 1 | AQ10: 0 | AT10: 1.3 | AU10: 2 | AV10: 1
F11: 1.8 | G11: 0 | H11: 0 | I11: 0 | K11: 1.4 | L11: 0 | M11: 0 | P11: 1.2 | Q11: 1 | R11: 0 | Z11: 1 | AA11: 0 | AB11: 0 | AE11: 1.4 | AF11: 0 | AG11: 2 | AO11: 1.6 | AP11: 0 | AQ11: 0 | AT11: 1.4 | AU11: 1 | AV11: 0
P12: 1.3 | Q12: 0 | R12: 0 | Z12: 1.1 | AA12: 0 | AB12: 1 | AE12: 1.6 | AF12: 0 | AG12: 1 | AT12: 1.5 | AU12: 0 | AV12: 0
Z13: 1.2 | AA13: 0 | AB13: 0 | AE13: 1.8 | AF13: 0 | AG13: 0 | AT13: 1.6 | AU13: 0 | AV13: 0
A28: Max | B28: ='Data Entry'!C59 -> 1.13 | C28: ='Data Entry'!D59 -> 0.00 | D28: ='Data Entry'!E59 -> 0.00 | E28: ='Data Entry'!F59 -> 0.00 | F28: Max | G28: ='Data Entry'!I59 -> 1.39 | H28: ='Data Entry'!J59 -> 0.00 | I28: ='Data Entry'!K59 -> 0.00 | J28: ='Data Entry'!L59 -> 0.00 | K28: Max | L28: ='Data Entry'!O59 -> 0.97 | M28: ='Data Entry'!P59 -> 0.00 | N28: ='Data Entry'!Q59 -> 0.00 | O28: ='Data Entry'!R59 -> 0.00 | P28: Max | Q28: ='Data Entry'!U59 -> 1.19 | R28: ='Data Entry'!V59 -> 0.00 | S28: ='Data Entry'!W59 -> 0.00 | T28: ='Data Entry'!X59 -> 0.00 | U28: Max | V28: ='Data Entry'!AA59 -> 0.82 | W28: ='Data Entry'!AB59 -> 0.00 | X28: ='Data Entry'!AC59 -> 0.00 | Y28: ='Data Entry'!AD59 -> 0.00 | Z28: Max | AA28: ='Data Entry'!AG59 -> 0.84 | AB28: ='Data Entry'!AH59 -> 1.07 | AC28: ='Data Entry'!AI59 -> 0.00 | AD28: ='Data Entry'!AJ59 -> 0.00 | AE28: Max | AF28: ='Data Entry'!AM59 -> 0.64 | AG28: ='Data Entry'!AN59 -> 1.41 | AH28: ='Data Entry'!AO59 -> 0.00 | AI28: ='Data Entry'!AP59 -> 0.00 | AJ28: Max | AK28: ='Data Entry'!AS59 -> 0.39 | AL28: ='Data Entry'!AT59 -> 0.00 | AM28: ='Data Entry'!AU59 -> 0.00 | AN28: ='Data Entry'!AV59 -> 0.00 | AO28: Max | AP28: ='Data Entry'!AY59 -> 1.24 | AQ28: ='Data Entry'!AZ59 -> 1.08 | AR28: ='Data Entry'!BA59 -> 0.00 | AS28: ='Data Entry'!BB59 -> 0.00 | AT28: Max | AU28: ='Data Entry'!BE59 -> 1.35 | AV28: ='Data Entry'!BF59 -> 1.30 | AW28: ='Data Entry'!BG59 -> 0.00 | AX28: ='Data Entry'!BH59 -> 0.00
A29: Min | B29: ='Data Entry'!C60 -> 1.07 | C29: ='Data Entry'!D60 -> 0.00 | D29: ='Data Entry'!E60 -> 0.00 | E29: ='Data Entry'!F60 -> 0.00 | F29: Min | G29: ='Data Entry'!I60 -> 1.10 | H29: ='Data Entry'!J60 -> 0.00 | I29: ='Data Entry'!K60 -> 0.00 | J29: ='Data Entry'!L60 -> 0.00 | K29: Min | L29: ='Data Entry'!O60 -> 0.66 | M29: ='Data Entry'!P60 -> 0.00 | N29: ='Data Entry'!Q60 -> 0.00 | O29: ='Data Entry'!R60 -> 0.00 | P29: Min | Q29: ='Data Entry'!U60 -> 0.90 | R29: ='Data Entry'!V60 -> 0.00 | S29: ='Data Entry'!W60 -> 0.00 | T29: ='Data Entry'!X60 -> 0.00 | U29: Min | V29: ='Data Entry'!AA60 -> 0.76 | W29: ='Data Entry'!AB60 -> 0.00 | X29: ='Data Entry'!AC60 -> 0.00 | Y29: ='Data Entry'!AD60 -> 0.00 | Z29: Min | AA29: ='Data Entry'!AG60 -> 0.68 | AB29: ='Data Entry'!AH60 -> 1.07 | AC29: ='Data Entry'!AI60 -> 0.00 | AD29: ='Data Entry'!AJ60 -> 0.00 | AE29: Min | AF29: ='Data Entry'!AM60 -> 0.62 | AG29: ='Data Entry'!AN60 -> 1.17 | AH29: ='Data Entry'!AO60 -> 0.00 | AI29: ='Data Entry'!AP60 -> 0.00 | AJ29: Min | AK29: ='Data Entry'!AS60 -> 0.39 | AL29: ='Data Entry'!AT60 -> 0.00 | AM29: ='Data Entry'!AU60 -> 0.00 | AN29: ='Data Entry'!AV60 -> 0.00 | AO29: Min | AP29: ='Data Entry'!AY60 -> 0.92 | AQ29: ='Data Entry'!AZ60 -> 1.04 | AR29: ='Data Entry'!BA60 -> 0.00 | AS29: ='Data Entry'!BB60 -> 0.00 | AT29: Min | AU29: ='Data Entry'!BE60 -> 1.08 | AV29: ='Data Entry'!BF60 -> 1.04 | AW29: ='Data Entry'!BG60 -> 0.00 | AX29: ='Data Entry'!BH60 -> 0.00
A30: Sum Data Entry | B30: =COUNT('Data Entry'!C7:C56) -> 3 | C30: =COUNT('Data Entry'!D7:D56) -> 0 | D30: =COUNT('Data Entry'!E7:E56) -> 0 | E30: =COUNT('Data Entry'!F7:F56) -> 0 | F30: Sum Data Entry | G30: =COUNT('Data Entry'!I7:I56) -> 4 | H30: =COUNT('Data Entry'!J7:J56) -> 0 | I30: =COUNT('Data Entry'!K7:K56) -> 0 | J30: =COUNT('Data Entry'!L7:L56) -> 0 | K30: Sum Data Entry | L30: =COUNT('Data Entry'!O7:O56) -> 11 | M30: =COUNT('Data Entry'!P7:P56) -> 0 | N30: =COUNT('Data Entry'!Q7:Q56) -> 0 | O30: =COUNT('Data Entry'!R7:R56) -> 0 | P30: Sum Data Entry | Q30: =COUNT('Data Entry'!U7:U56) -> 4 | R30: =COUNT('Data Entry'!V7:V56) -> 0 | S30: =COUNT('Data Entry'!W7:W56) -> 0 | T30: =COUNT('Data Entry'!X7:X56) -> 0 | U30: Sum Data Entry | V30: =COUNT('Data Entry'!AA7:AA56) -> 2 | W30: =COUNT('Data Entry'!AB7:AB56) -> 0 | X30: =COUNT('Data Entry'!AC7:AC56) -> 0 | Y30: =COUNT('Data Entry'!AD7:AD56) -> 0 | Z30: Sum Data Entry | AA30: =COUNT('Data Entry'!AG7:AG56) -> 7 | AB30: =COUNT('Data Entry'!AH7:AH56) -> 1 | AC30: =COUNT('Data Entry'!AI7:AI56) -> 0 | AD30: =COUNT('Data Entry'!AJ7:AJ56) -> 0 | AE30: Sum Data Entry | AF30: =COUNT('Data Entry'!AM7:AM56) -> 2 | AG30: =COUNT('Data Entry'!AN7:AN56) -> 4 | AH30: =COUNT('Data Entry'!AO7:AO56) -> 0 | AI30: =COUNT('Data Entry'!AP7:AP56) -> 0 | AJ30: Sum Data Entry | AK30: =COUNT('Data Entry'!AS7:AS56) -> 2 | AL30: =COUNT('Data Entry'!AT7:AT56) -> 0 | AM30: =COUNT('Data Entry'!AU7:AU56) -> 0 | AN30: =COUNT('Data Entry'!AV7:AV56) -> 0 | AO30: Sum Data Entry | AP30: =COUNT('Data Entry'!AY7:AY56) -> 10 | AQ30: =COUNT('Data Entry'!AZ7:AZ56) -> 2 | AR30: =COUNT('Data Entry'!BA7:BA56) -> 0 | AS30: =COUNT('Data Entry'!BB7:BB56) -> 0 | AT30: Sum Data Entry | AU30: =COUNT('Data Entry'!BE7:BE56) -> 6 | AV30: =COUNT('Data Entry'!BF7:BF56) -> 3 | AW30: =COUNT('Data Entry'!BG7:BG56) -> 0 | AX30: =COUNT('Data Entry'!BH7:BH56) -> 0
A31: Sum Frequency | B31: =SUM(B6:B26) -> 3 | C31: =SUM(C6:C26) -> 0 | D31: =SUM(D6:D26) -> 0 | E31: =SUM(E6:E26) -> 0 | F31: Sum Frequency | G31: =SUM(G6:G26) -> 4 | H31: =SUM(H6:H26) -> 0 | I31: 0 | J31: 0 | K31: Sum Frequency | L31: 11 | M31: 0 | N31: 0 | O31: 0 | P31: Sum Frequency | Q31: 4 | R31: 0 | S31: 0 | T31: 0 | U31: Sum Frequency | V31: 2 | W31: 0 | X31: 0 | Y31: 0 | Z31: Sum Frequency | AA31: 7 | AB31: 1 | AC31: 0 | AD31: 0 | AE31: Sum Frequency | AF31: 2 | AG31: 4 | AH31: 0 | AI31: 0 | AJ31: Sum Frequency | AK31: 2 | AL31: 0 | AM31: 0 | AN31: 0 | AO31: Sum Frequency | AP31: 10 | AQ31: 2 | AR31: 0 | AS31: 0 | AT31: Sum Frequency | AU31: 6 | AV31: 3 | AW31: 0 | AX31: 0
A32: Confirm | B32: =IF(B30<>B31,FALSE,TRUE) -> TRUE | C32: =IF(C30<>C31,FALSE,TRUE) -> TRUE | D32: =IF(D30<>D31,FALSE,TRUE) -> TRUE | E32: =IF(E30<>E31,FALSE,TRUE) -> TRUE | F32: Confirm | G32: =IF(G30<>G31,FALSE,TRUE) -> TRUE | H32: =IF(H30<>H31,FALSE,TRUE) -> TRUE | I32: =IF(I30<>I31,FALSE,TRUE) -> TRUE | J32: =IF(J30<>J31,FALSE,TRUE) -> TRUE | K32: Confirm | L32: =IF(L30<>L31,FALSE,TRUE) -> TRUE | M32: =IF(M30<>M31,FALSE,TRUE) -> TRUE | N32: =IF(N30<>N31,FALSE,TRUE) -> TRUE | O32: =IF(O30<>O31,FALSE,TRUE) -> TRUE | P32: Confirm | Q32: =IF(Q30<>Q31,FALSE,TRUE) -> TRUE | R32: =IF(R30<>R31,FALSE,TRUE) -> TRUE | S32: =IF(S30<>S31,FALSE,TRUE) -> TRUE | T32: =IF(T30<>T31,FALSE,TRUE) -> TRUE | U32: Confirm | V32: =IF(V30<>V31,FALSE,TRUE) -> TRUE | W32: =IF(W30<>W31,FALSE,TRUE) -> TRUE | X32: =IF(X30<>X31,FALSE,TRUE) -> TRUE | Y32: =IF(Y30<>Y31,FALSE,TRUE) -> TRUE | Z32: Confirm | AA32: =IF(AA30<>AA31,FALSE,TRUE) -> TRUE | AB32: =IF(AB30<>AB31,FALSE,TRUE) -> TRUE | AC32: =IF(AC30<>AC31,FALSE,TRUE) -> TRUE | AD32: =IF(AD30<>AD31,FALSE,TRUE) -> TRUE | AE32: Confirm | AF32: =IF(AF30<>AF31,FALSE,TRUE) -> TRUE | AG32: =IF(AG30<>AG31,FALSE,TRUE) -> TRUE | AH32: =IF(AH30<>AH31,FALSE,TRUE) -> TRUE | AI32: =IF(AI30<>AI31,FALSE,TRUE) -> TRUE | AJ32: Confirm | AK32: =IF(AK30<>AK31,FALSE,TRUE) -> TRUE | AL32: =IF(AL30<>AL31,FALSE,TRUE) -> TRUE | AM32: =IF(AM30<>AM31,FALSE,TRUE) -> TRUE | AN32: =IF(AN30<>AN31,FALSE,TRUE) -> TRUE | AO32: Confirm | AP32: =IF(AP30<>AP31,FALSE,TRUE) -> TRUE | AQ32: =IF(AQ30<>AQ31,FALSE,TRUE) -> TRUE | AR32: =IF(AR30<>AR31,FALSE,TRUE) -> TRUE | AS32: =IF(AS30<>AS31,FALSE,TRUE) -> TRUE | AT32: Confirm | AU32: =IF(AU30<>AU31,FALSE,TRUE) -> TRUE | AV32: =IF(AV30<>AV31,FALSE,TRUE) -> TRUE | AW32: =IF(AW30<>AW31,FALSE,TRUE) -> TRUE | AX32: =IF(AX30<>AX31,FALSE,TRUE) -> TRUE

Sheet Pellet 1
B2: =Database!A8 -> Plate 1 A-D | C2: =Database!B3 -> Vitrinite Reflectance Measurements, Histogram and Images
A4: Company: | B4: =Database!C1 -> Husky Energy
A5: Formation | B5: =Database!C8 -> Canol | J5: List of Ro Values in Increasing Order:
A6: Location: | B6: =Database!B8 -> Canada | J6: =Database!H8 -> 1.07 | K6: =Database!I8 -> 1.08 | L6: =Database!J8 -> 1.13
A7: Depth (m): | B7: =Database!D8 -> 1692.58 | E7: Well: | F7: =Database!E8 -> Little Bear N-9
A8: Min Value | C8: =MIN(J6:S10) -> 1.07 | E8: The mean Ro,ran of the primary kerogen is 1.09% based on 3 measurements. The organic matter is mature and in the upper stage of the oil window.
A9: Max Value | C9: =MAX(J6:S10) -> 1.13
A10: Mean Value | C10: =AVERAGE(J6:S10) -> 1.09
A11: # of Measurements | C11: =COUNT(J6:S10) -> 3 | O11: 10 micrometers
A12: Strd Deviation | C12: =STDEV(J6:S10) -> 0.03

Sheet Pellet 2
B2: =Database!A9 -> Plate 2 A-D | C2: =Database!B3 -> Vitrinite Reflectance Measurements, Histogram and Images
A4: Company: | B4: =Database!C1 -> Husky Energy
A5: Formation | B5: =Database!C9 -> Canol | J5: List of Ro Values in Increasing Order:
A6: Location: | B6: =Database!B9 -> Canada | J6: =Database!H9 -> 1.28 | K6: =Database!I9 -> 1.10 | L6: =Database!J9 -> 1.12 | M6: =Database!K9 -> 1.39
A7: Depth (m): | B7: =Database!D9 -> 1710.08 | E7: Well: | F7: =Database!E9 -> Little Bear N-9
A8: Min Value | C8: =MIN(J6:S10) -> 1.10 | E8: The mean Ro,ran of the primary kerogen is 1.22% based on 4 measurements. The organic matter is mature and in the upper stage of the oil window.
A9: Max Value | C9: =MAX(J6:S10) -> 1.39
A10: Mean Value | C10: =AVERAGE(J6:S10) -> 1.22
A11: # of Measurements | C11: =COUNT(J6:S10) -> 4 | O11: 10 micrometers
A12: Strd Deviation | C12: =STDEV(J6:S10) -> 0.14

Sheet Pellet 3
B2: =Database!A10 -> Plate 3 A-D | C2: =Database!B3 -> Vitrinite Reflectance Measurements, Histogram and Images
A4: Company: | B4: =Database!C1 -> Husky Energy
A5: Formation | B5: =Database!C10 -> Canol | J5: List of Ro Values in Increasing Order:
A6: Location: | B6: =Database!B10 -> Canada | J6: =Database!H10 -> 0.68 | K6: =Database!I10 -> 0.74 | L6: =Database!J10 -> 0.74 | M6: =Database!K10 -> 0.77 | N6: =Database!L10 -> 0.85 | O6: =Database!M10 -> 0.87 | P6: =Database!N10 -> 0.97
A7: Depth (m): | B7: =Database!D10 -> 1724.50 | E7: Well: | F7: =Database!E10 -> Little Bear N-9
A8: Min Value | C8: =MIN(J6:S10) -> 0.68 | E8: The mean Ro,ran of the granular kerogen is 0.80% based on 7 measurements. The above Ro value does not represent the level of maturity of this sample.
A9: Max Value | C9: =MAX(J6:S10) -> 0.97
A10: Mean Value | C10: =AVERAGE(J6:S10) -> 0.80
A11: # of Measurements | C11: =COUNT(J6:S10) -> 7 | O11: 10 micrometers
A12: Strd Deviation | C12: =STDEV(J6:S10) -> 0.10

Sheet Pellet 4
B2: =Database!A11 -> Plate 4 A-D | C2: =Database!B3 -> Vitrinite Reflectance Measurements, Histogram and Images
A4: Company: | B4: =Database!C1 -> Husky Energy
A5: Formation | B5: =Database!C11 -> Canol | J5: List of Ro Values in Increasing Order:
A6: Location: | B6: =Database!B11 -> Canada | J6: =Database!H11 -> 0.90 | K6: =Database!I11 -> 0.91 | L6: =Database!J11 -> 1.09 | M6: =Database!K11 -> 1.19
A7: Depth (m): | B7: =Database!D11 -> 1738.45 | E7: Well: | F7: =Database!E11 -> Little Bear N-9
A8: Min Value | C8: =MIN(J6:S10) -> 0.90 | E8: The mean Ro,ran of the bitumen is 1.02% based on 4 measurements. The VRo-eq is 1.03%. The organic matter is mature and in the early upper stage of the oil window.
A9: Max Value | C9: =MAX(J6:S10) -> 1.19 | J9: The above values were measured on bitumen. The VRo-eq is estimated to be 1.03% using
A10: Mean Value | C10: =AVERAGE(J6:S10) -> 1.02 | J10: the Jacob formula (Rvit=Rbit x 0.618 + 0.4).
A11: # of Measurements | C11: =COUNT(J6:S10) -> 4 | O11: 10 micrometers
A12: Strd Deviation | C12: =STDEV(J6:S10) -> 0.14

Sheet Pellet 5
B2: =Database!A12 -> Plate 5 A-D | C2: =Database!B3 -> Vitrinite Reflectance Measurements, Histogram and Images
A4: Company: | B4: =Database!C1 -> Husky Energy
A5: Formation | B5: =Database!C12 -> Canol | J5: List of Ro Values in Increasing Order:
A6: Location: | B6: =Database!B12 -> Canada | J6: =Database!H12 -> 0.76 | K6: =Database!I12 -> 0.82
A7: Depth (m): | B7: =Database!D12 -> 1752.53 | E7: Well: | F7: =Database!E12 -> Little Bear N-9
A8: Min Value | C8: =MIN(J6:S10) -> 0.76 | E8: The mean Ro,ran of the bitumen is 0.79% based on 2 measurements. The VRo-eq is 0.89%, which is not considered to reflect the true level of maturity of the sample.
A9: Max Value | C9: =MAX(J6:S10) -> 0.82 | J9: The above values were measured on bitumen. VRo-eq is 0.89% using the Jacob formula
A10: Mean Value | C10: =AVERAGE(J6:S10) -> 0.79 | J10: (Rvit=Rbit x 0.618 + 0.4).
A11: # of Measurements | C11: =COUNT(J6:S10) -> 2 | O11: 10 micrometers
A12: Strd Deviation | C12: =STDEV(J6:S10) -> 0.04

Sheet Pellet 6
B2: =Database!A13 -> Plate 6 A-D | C2: =Database!B3 -> Vitrinite Reflectance Measurements, Histogram and Images
A4: Company: | B4: =Database!C1 -> Husky Energy
A5: Formation | B5: =Database!C13 -> Canol | J5: List of Ro Values in Increasing Order:
A6: Location: | B6: =Database!B13 -> Canada | J6: =Database!H13 -> 1.07
A7: Depth (m): | B7: =Database!D13 -> 1765.07 | E7: Well: | F7: =Database!E13 -> Little Bear N-9
A8: Min Value | C8: =MIN(J6:S10) -> 1.07 | E8: The Ro,ran of the single graptolite particle is 1.07%. The VRo-eq is estimated to be 1.15%. The organic matter is mature and in the upper part of the oil window.
A9: Max Value | C9: =MAX(J6:S10) -> 1.07 | J9: The above value was measured on graptolite. The VRo-eq is estimated to be 1.15% based on
A10: Mean Value | C10: =AVERAGE(J6:S10) -> 1.07 | J10: the correlation by Bertrand (1990).
A11: # of Measurements | C11: =COUNT(J6:S10) -> 1 | O11: 10 micrometers
A12: Strd Deviation | C12: N/A

Sheet Pellet 7
B2: =Database!A14 -> Plate 7 A-D | C2: =Database!B3 -> Vitrinite Reflectance Measurements, Histogram and Images
A4: Company: | B4: =Database!C1 -> Husky Energy
A5: Formation | B5: =Database!C14 -> Canol | J5: List of Ro Values in Increasing Order:
A6: Location: | B6: =Database!B14 -> Canada | J6: =Database!H14 -> 1.17 | K6: =Database!I14 -> 1.20 | L6: =Database!J14 -> 1.38 | M6: =Database!K14 -> 1.41
A7: Depth (m): | B7: =Database!D14 -> 1779.04 | E7: Well: | F7: =Database!E14 -> Little Bear N-9
A8: Min Value | C8: =MIN(J6:S10) -> 1.17 | E8: The mean Ro,ran of the primary kerogen (vitrinitic) is 1.29% based on 4 measurements. Organic matter is mature and in the upper part of the oil generation zone.
A9: Max Value | C9: =MAX(J6:S10) -> 1.41
A10: Mean Value | C10: =AVERAGE(J6:S10) -> 1.29
A11: # of Measurements | C11: =COUNT(J6:S10) -> 4 | O11: 10 micrometers
A12: Strd Deviation | C12: =STDEV(J6:S10) -> 0.12

Sheet Pellet 8
B2: =Database!A15 -> Plate 8 A-D | C2: =Database!B3 -> Vitrinite Reflectance Measurements, Histogram and Images
A4: Company: | B4: =Database!C1 -> Husky Energy
A5: Formation | B5: =Database!C15 -> Canol | J5: List of Ro Values in Increasing Order:
A6: Location: | B6: =Database!B15 -> Canada | J6: =Database!H15 -> 0.39 | K6: =Database!I15 -> 0.39
A7: Depth (m): | B7: =Database!D15 -> 1791.31 | E7: Well: | F7: =Database!E15 -> Little Bear N-9
A8: Min Value | C8: =MIN(J6:S10) -> 0.39 | E8: The mean Ro,ran of the granular kerogen is 0.39% based on 2 measurements. The above Ro value is not representing the level of thermal maturity of this sample.
A9: Max Value | C9: =MAX(J6:S10) -> 0.39
A10: Mean Value | C10: =AVERAGE(J6:S10) -> 0.39
A11: # of Measurements | C11: =COUNT(J6:S10) -> 2 | O11: 10 micrometers
A12: Strd Deviation | C12: =STDEV(J6:S10) -> 0.00

Sheet Pellet 9
B2: =Database!A16 -> Plate 9 A-D | C2: =Database!B3 -> Vitrinite Reflectance Measurements, Histogram and Images
A4: Company: | B4: =Database!C1 -> Husky Energy
A5: Formation | B5: =Database!C16 -> Canol | J5: List of Ro Values in Increasing Order:
A6: Location: | B6: =Database!B16 -> Canada | J6: =Database!H16 -> 0.92 | K6: =Database!I16 -> 0.93 | L6: =Database!J16 -> 0.96 | M6: =Database!K16 -> 0.96 | N6: =Database!L16 -> 1.05 | O6: =Database!M16 -> 1.12 | P6: =Database!N16 -> 1.12 | Q6: =Database!O16 -> 1.14 | R6: =Database!P16 -> 1.19 | S6: =Database!Q16 -> 1.24
A7: Depth (m): | B7: =Database!D16 -> 1805.38 | E7: Well: | F7: =Database!E16 -> Little Bear N-9
A8: Min Value | C8: =MIN(J6:S10) -> 0.92 | E8: The mean Ro,ran of the primary kerogen (vitrinitic) is 1.06% based on 10 measurements. VRo-eq from graptolite Ro is 1.13%. Organic matter is mature and in the upper part of the oil generation zone.
A9: Max Value | C9: =MAX(J6:S10) -> 1.24 | J9: VRo-eq from graptolite Ro is 1.13%, which is slightly higher than the measured vitrinite mean
A10: Mean Value | C10: =AVERAGE(J6:S10) -> 1.06 | J10: Ro of 1.06%. The VRo-eq value (1.13%) should be used to construct the maturation profile.
A11: # of Measurements | C11: =COUNT(J6:S10) -> 10 | O11: 10 micrometers
A12: Strd Deviation | C12: =STDEV(J6:S10) -> 0.12

Sheet Pellet 10
A2: =Database!A17 -> Plate 10 A-D | C2: =Database!B3 -> Vitrinite Reflectance Measurements, Histogram and Images
A4: Company: | B4: =Database!C1 -> Husky Energy
A5: Formation | B5: =Database!C17 -> Canol | J5: List of Ro Values in Increasing Order:
A6: Location: | B6: =Database!B17 -> Canada | J6: =Database!H17 -> 1.08 | K6: =Database!I17 -> 1.15 | L6: =Database!J17 -> 1.19 | M6: =Database!K17 -> 1.21 | N6: =Database!L17 -> 1.27 | O6: =Database!M17 -> 1.35
A7: Depth (m): | B7: =Database!D17 -> 1820.00 | E7: Well: | F7: =Database!E17 -> Little Bear N-9
A8: Min Value | C8: =MIN(J6:S10) -> 1.08 | E8: The mean Ro,ran of the primary kerogen (vitrinitic) is 1.21% based on 6 measurements. Organic matter is mature and in the upper part of the oil generation zone.
A9: Max Value | C9: =MAX(J6:S10) -> 1.35
A10: Mean Value | C10: =AVERAGE(J6:S10) -> 1.21
A11: # of Measurements | C11: =COUNT(J6:S10) -> 6 | O11: 10 micrometers
A12: Strd Deviation | C12: =STDEV(J6:S10) -> 0.10
